[Event "Titled Tuesday Blitz May 10 Late 2022"]
[White "Sailer, Mike"]
[Black "Toncheva, Nadya"]
[WhiteFideId "2012901"]
[BlackFideId "2924056"]
[WhiteElo "2109"]
[BlackElo "1888"]
[Result "0-1"]
[Round "02"]
[TimeControl "180+1"]
[Date "2022.05.11"]
[WhiteClock "0:00:03"]
[BlackClock "0:00:07"]

1. d4 {[%clk 0:03:00]}  Nf6 {[%clk 0:01:42]} 2. Nf3 {[%clk 0:02:55]}  e6 {[%clk 0:01:42]} 3. Bg5 {[%clk 0:02:53]}  c5 {[%clk 0:01:43]} 4. e3 {[%clk 0:02:53]}  d5 {[%clk 0:01:41]} 5. Nc3 {[%clk 0:02:46]}  a6 {[%clk 0:01:39]} 6. Be2 {[%clk 0:02:46]}  Nbd7 {[%clk 0:01:37]} 7. O-O {[%clk 0:02:45]}  Qc7 {[%clk 0:01:37]} 8. a3 {[%clk 0:02:40]}  h6 {[%clk 0:01:37]} 9. Bf4 {[%clk 0:02:39]}  Bd6 {[%clk 0:01:37]} 10. Bxd6 {[%clk 0:02:39]}  Qxd6 {[%clk 0:01:38]} 11. dxc5 {[%clk 0:02:35]}  Nxc5 {[%clk 0:01:39]} 12. b4 {[%clk 0:02:23]}  Nce4 {[%clk 0:01:38]} 13. Nxe4 {[%clk 0:02:24]}  Nxe4 {[%clk 0:01:39]} 14. Bd3 {[%clk 0:02:19]}  Nf6 {[%clk 0:01:35]} 15. c4 {[%clk 0:02:17]}  O-O {[%clk 0:01:35]} 16. c5 {[%clk 0:02:16]}  Qc7 {[%clk 0:01:32]} 17. Rc1 {[%clk 0:02:10]}  e5 {[%clk 0:01:32]} 18. Bb1 {[%clk 0:01:59]}  Bg4 {[%clk 0:01:25]} 19. h3 {[%clk 0:01:59]}  Bh5 {[%clk 0:01:26]} 20. Qc2 {[%clk 0:01:51]}  Bxf3 {[%clk 0:01:16]} 21. gxf3 {[%clk 0:01:51]}  Qd7 {[%clk 0:01:16]} 22. Kh2 {[%clk 0:01:48]}  d4 {[%clk 0:01:12]} 23. Rg1 {[%clk 0:01:43]}  Rad8 {[%clk 0:01:06]} 24. Rcd1 {[%clk 0:01:41]}  g6 {[%clk 0:00:58]} 25. Ba2 {[%clk 0:01:21]}  Kh8 {[%clk 0:00:41]} 26. Rd2 {[%clk 0:01:04]}  Qc7 {[%clk 0:00:26]} 27. Kh1 {[%clk 0:00:35]}  dxe3 {[%clk 0:00:20]} 28. fxe3 {[%clk 0:00:36]}  Rxd2 {[%clk 0:00:18]} 29. Qxd2 {[%clk 0:00:36]}  Rd8 {[%clk 0:00:19]} 30. Qc3 {[%clk 0:00:34]}  Qd7 {[%clk 0:00:18]} 31. Kh2 {[%clk 0:00:32]}  Qd2+ {[%clk 0:00:15]} 32. Qxd2 {[%clk 0:00:32]}  Rxd2+ {[%clk 0:00:15]} 33. Rg2 {[%clk 0:00:33]}  Rd3 {[%clk 0:00:11]} 34. Bxf7 {[%clk 0:00:32]}  g5 {[%clk 0:00:12]} 35. f4 {[%clk 0:00:20]}  gxf4 {[%clk 0:00:09]} 36. exf4 {[%clk 0:00:21]}  exf4 {[%clk 0:00:09]} 37. Rg6 {[%clk 0:00:18]}  Ne4 {[%clk 0:00:09]} 38. Rb6 {[%clk 0:00:08]}  Rd2+ {[%clk 0:00:09]} 39. Kg1 {[%clk 0:00:08]}  f3 {[%clk 0:00:10]} 40. Bc4 {[%clk 0:00:03]}  Rg2+ {[%clk 0:00:08]} 41. Kf1 {[%clk 0:00:04]}  Nd2+ {[%clk 0:00:05]} 42. Ke1 {[%clk 0:00:03]}  Nxc4 {[%clk 0:00:06]} 43. Rxb7 {[%clk 0:00:03]}  Re2+ {[%clk 0:00:05]} 44. Kf1 {[%clk 0:00:04]}  Ne3+ {[%clk 0:00:05]} 45. Kg1 {[%clk 0:00:04]}  f2+ {[%clk 0:00:06]} 46. Kh2 {[%clk 0:00:03]}  f1=Q+ {[%clk 0:00:07]} 0-1


[Site "https://www.chess.com"]

[Event "Titled Tuesday Blitz May 10 Late 2022"]
[White "Sanchez, Robert"]
[Black "Saveliev, Alexei"]
[WhiteFideId "2034360"]
[BlackFideId "24128546"]
[WhiteElo "2205"]
[BlackElo "2281"]
[Result "1-0"]
[Round "02"]
[TimeControl "180+1"]
[Date "2022.05.11"]
[WhiteClock "0:01:12"]
[BlackClock "0:00:17"]

1. e4 {[%clk 0:03:00]}  g6 {[%clk 0:02:58]} 2. d4 {[%clk 0:03:00]}  Bg7 {[%clk 0:02:59]} 3. Nc3 {[%clk 0:03:01]}  d6 {[%clk 0:02:59]} 4. Be3 {[%clk 0:03:01]}  Nc6 {[%clk 0:02:59]} 5. f3 {[%clk 0:03:01]}  e5 {[%clk 0:03:00]} 6. d5 {[%clk 0:03:01]}  Nce7 {[%clk 0:03:00]} 7. Qd2 {[%clk 0:03:01]}  f5 {[%clk 0:03:01]} 8. O-O-O {[%clk 0:03:01]}  Nf6 {[%clk 0:03:01]} 9. Kb1 {[%clk 0:03:01]}  O-O {[%clk 0:02:59]} 10. h4 {[%clk 0:03:00]}  fxe4 {[%clk 0:02:52]} 11. fxe4 {[%clk 0:03:00]}  Bg4 {[%clk 0:02:41]} 12. Nf3 {[%clk 0:02:59]}  Nh5 {[%clk 0:02:34]} 13. Bg5 {[%clk 0:02:40]}  Bf6 {[%clk 0:02:21]} 14. Re1 {[%clk 0:02:25]}  Qd7 {[%clk 0:02:10]} 15. Nh2 {[%clk 0:02:22]}  Ng3 {[%clk 0:01:55]} 16. Rg1 {[%clk 0:02:21]}  a6 {[%clk 0:01:26]} 17. Bd3 {[%clk 0:02:14]}  Nh5 {[%clk 0:01:22]} 18. Nd1 {[%clk 0:02:08]}  Bxd1 {[%clk 0:01:16]} 19. Qxd1 {[%clk 0:02:04]}  Nf4 {[%clk 0:01:10]} 20. Ng4 {[%clk 0:01:57]}  Bg7 {[%clk 0:01:05]} 21. g3 {[%clk 0:01:52]}  Nxd3 {[%clk 0:01:01]} 22. cxd3 {[%clk 0:01:51]}  c5 {[%clk 0:00:59]} 23. h5 {[%clk 0:01:41]}  b5 {[%clk 0:00:51]} 24. Rh1 {[%clk 0:01:38]}  c4 {[%clk 0:00:46]} 25. Nh6+ {[%clk 0:01:27]}  Bxh6 {[%clk 0:00:44]} 26. Bxh6 {[%clk 0:01:27]}  Rf2 {[%clk 0:00:42]} 27. Ref1 {[%clk 0:01:17]}  Qa7 {[%clk 0:00:17]} 28. Qg4 {[%clk 0:01:12]} 1-0


[Site "https://www.chess.com"]

[Event "Titled Tuesday Blitz May 10 Late 2022"]
[White "Souleidis, Georgios"]
[Black "Martinez Alcantara, Jose Eduardo"]
[WhiteFideId "4206827"]
[BlackFideId "3805662"]
[WhiteElo "2401"]
[BlackElo "2690"]
[Result "0-1"]
[Round "02"]
[TimeControl "180+1"]
[Date "2022.05.10"]
[WhiteClock "0:00:02"]
[BlackClock "0:00:41"]

1. e4 {[%clk 0:02:21]}  c5 {[%clk 0:02:59]} 2. Be2 {[%clk 0:02:21]}  d6 {[%clk 0:03:00]} 3. f4 {[%clk 0:02:21]}  g6 {[%clk 0:03:00]} 4. d3 {[%clk 0:02:21]}  Bg7 {[%clk 0:03:01]} 5. Nf3 {[%clk 0:02:22]}  Nc6 {[%clk 0:03:01]} 6. O-O {[%clk 0:02:23]}  Nf6 {[%clk 0:03:01]} 7. c3 {[%clk 0:02:23]}  O-O {[%clk 0:03:02]} 8. Kh1 {[%clk 0:02:23]}  b6 {[%clk 0:03:02]} 9. Be3 {[%clk 0:02:23]}  Bb7 {[%clk 0:03:02]} 10. Nbd2 {[%clk 0:02:23]}  e6 {[%clk 0:03:03]} 11. d4 {[%clk 0:02:24]}  Ne7 {[%clk 0:03:01]} 12. Bd3 {[%clk 0:02:23]}  a6 {[%clk 0:02:57]} 13. a3 {[%clk 0:02:23]}  Qc7 {[%clk 0:02:57]} 14. Qe2 {[%clk 0:02:23]}  b5 {[%clk 0:02:56]} 15. Rac1 {[%clk 0:02:22]}  Rac8 {[%clk 0:02:56]} 16. Bb1 {[%clk 0:02:22]}  Qb8 {[%clk 0:02:56]} 17. Rcd1 {[%clk 0:02:22]}  Rfd8 {[%clk 0:02:55]} 18. b4 {[%clk 0:02:11]}  cxb4 {[%clk 0:02:54]} 19. cxb4 {[%clk 0:02:11]}  Rc3 {[%clk 0:02:52]} 20. f5 {[%clk 0:01:36]}  exf5 {[%clk 0:02:43]} 21. exf5 {[%clk 0:01:36]}  Ned5 {[%clk 0:02:19]} 22. Bg5 {[%clk 0:01:31]}  Re8 {[%clk 0:02:20]} 23. Qf2 {[%clk 0:01:23]}  Ne3 {[%clk 0:02:15]} 24. fxg6 {[%clk 0:01:14]}  hxg6 {[%clk 0:02:13]} 25. Bxf6 {[%clk 0:01:05]}  Ng4 {[%clk 0:01:15]} 26. Qh4 {[%clk 0:00:55]}  Nxf6 {[%clk 0:01:15]} 27. Ng5 {[%clk 0:00:50]}  Qd8 {[%clk 0:01:16]} 28. Rf2 {[%clk 0:00:39]}  Rce3 {[%clk 0:00:59]} 29. Rdf1 {[%clk 0:00:29]}  Re1 {[%clk 0:00:59]} 30. Rxf6 {[%clk 0:00:14]}  Qxf6 {[%clk 0:00:59]} 31. Rxe1 {[%clk 0:00:12]}  Rxe1+ {[%clk 0:01:00]} 32. Qxe1 {[%clk 0:00:12]}  Qxg5 {[%clk 0:01:01]} 33. Nf3 {[%clk 0:00:04]}  Bxf3 {[%clk 0:00:56]} 34. gxf3 {[%clk 0:00:05]}  Bxd4 {[%clk 0:00:55]} 35. Be4 {[%clk 0:00:04]}  d5 {[%clk 0:00:50]} 36. Bd3 {[%clk 0:00:04]}  Qf4 {[%clk 0:00:45]} 37. Qf1 {[%clk 0:00:04]}  Be5 {[%clk 0:00:44]} 38. Qe2 {[%clk 0:00:03]}  Qc1+ {[%clk 0:00:41]} 39. Qf1 {[%clk 0:00:03]}  Qxa3 {[%clk 0:00:41]} 40. Qe1 {[%clk 0:00:03]}  Qxd3 {[%clk 0:00:40]} 41. Qxe5 {[%clk 0:00:02]}  Qf1# {[%clk 0:00:41]} 0-1


[Site "https://www.chess.com"]

[Event "Titled Tuesday Blitz May 10 Late 2022"]
[White "Suder, Jakub"]
[Black "Hansen, Eric"]
[WhiteFideId "1195310"]
[BlackFideId "2606771"]
[WhiteElo "2058"]
[BlackElo "2568"]
[Result "0-1"]
[Round "02"]
[TimeControl "180+1"]
[Date "2022.05.10"]
[WhiteClock "0:00:08"]
[BlackClock "0:00:04"]

1. d4 {[%clk 0:03:00]}  Nf6 {[%clk 0:02:59]} 2. c4 {[%clk 0:03:00]}  e6 {[%clk 0:03:00]} 3. Nc3 {[%clk 0:03:00]}  Bb4 {[%clk 0:02:59]} 4. Qb3 {[%clk 0:02:59]}  a5 {[%clk 0:02:56]} 5. g3 {[%clk 0:02:53]}  Nc6 {[%clk 0:02:52]} 6. Nf3 {[%clk 0:02:53]}  a4 {[%clk 0:02:52]} 7. Qc2 {[%clk 0:02:50]}  a3 {[%clk 0:02:52]} 8. b3 {[%clk 0:02:45]}  d5 {[%clk 0:02:35]} 9. cxd5 {[%clk 0:02:33]}  Qxd5 {[%clk 0:02:26]} 10. Be3 {[%clk 0:01:46]}  Ne4 {[%clk 0:02:24]} 11. Bd2 {[%clk 0:01:47]}  Nxc3 {[%clk 0:01:26]} 12. Bxc3 {[%clk 0:01:46]}  Nxd4 {[%clk 0:01:27]} 13. Nxd4 {[%clk 0:01:35]}  Bxc3+ {[%clk 0:01:20]} 14. Qxc3 {[%clk 0:01:35]}  Qxh1 {[%clk 0:01:17]} 15. Nf3 {[%clk 0:01:36]}  O-O {[%clk 0:01:10]} 16. O-O-O {[%clk 0:01:34]}  e5 {[%clk 0:01:05]} 17. Bh3 {[%clk 0:01:03]}  Qxd1+ {[%clk 0:01:05]} 18. Kxd1 {[%clk 0:01:04]}  Bxh3 {[%clk 0:01:05]} 19. Nxe5 {[%clk 0:00:57]}  Be6 {[%clk 0:00:59]} 20. e4 {[%clk 0:00:53]}  c5 {[%clk 0:00:58]} 21. f4 {[%clk 0:00:53]}  f6 {[%clk 0:00:53]} 22. Nd3 {[%clk 0:00:47]}  b6 {[%clk 0:00:52]} 23. f5 {[%clk 0:00:46]}  Bf7 {[%clk 0:00:52]} 24. e5 {[%clk 0:00:43]}  fxe5 {[%clk 0:00:47]} 25. Nxe5 {[%clk 0:00:44]}  Rad8+ {[%clk 0:00:42]} 26. Kc1 {[%clk 0:00:43]}  Bd5 {[%clk 0:00:38]} 27. g4 {[%clk 0:00:41]}  Rfe8 {[%clk 0:00:38]} 28. h4 {[%clk 0:00:37]}  b5 {[%clk 0:00:38]} 29. g5 {[%clk 0:00:33]}  b4 {[%clk 0:00:39]} 30. Qg3 {[%clk 0:00:30]}  c4 {[%clk 0:00:21]} 31. bxc4 {[%clk 0:00:29]}  Rc8 {[%clk 0:00:22]} 32. Qf4 {[%clk 0:00:20]}  Rc7 {[%clk 0:00:10]} 33. Kb1 {[%clk 0:00:17]}  Rce7 {[%clk 0:00:08]} 34. cxd5 {[%clk 0:00:12]}  Rxe5 {[%clk 0:00:09]} 35. d6 {[%clk 0:00:12]}  Re1+ {[%clk 0:00:02]} 36. Kc2 {[%clk 0:00:12]}  Kf8 {[%clk 0:00:03]} 37. f6 {[%clk 0:00:12]}  R1e2+ {[%clk 0:00:02]} 38. Kb3 {[%clk 0:00:11]}  R2e3+ {[%clk 0:00:03]} 39. Ka4 {[%clk 0:00:12]}  b3 {[%clk 0:00:03]} 40. d7 {[%clk 0:00:10]}  R3e4+ {[%clk 0:00:03]} 41. Qxe4 {[%clk 0:00:08]}  Rxe4+ {[%clk 0:00:03]} 42. Kxb3 {[%clk 0:00:08]}  Rd4 {[%clk 0:00:04]} 43. Kc3 {[%clk 0:00:08]}  Rxd7 {[%clk 0:00:04]} 0-1


[Site "https://www.chess.com"]

[Event "Titled Tuesday Blitz May 10 Late 2022"]
[White "Suleymanli, Aydin"]
[Black "Nazaretyan, Tigran"]
[WhiteFideId "13413937"]
[BlackFideId "24162345"]
[WhiteElo "2481"]
[BlackElo "2225"]
[Result "1-0"]
[Round "02"]
[TimeControl "180+1"]
[Date "2022.05.10"]
[WhiteClock "0:00:19"]
[BlackClock "0:00:04"]

1. e4 {[%clk 0:02:08]}  c5 {[%clk 0:02:57]} 2. Nf3 {[%clk 0:02:08]}  Nc6 {[%clk 0:02:56]} 3. d4 {[%clk 0:02:06]}  cxd4 {[%clk 0:02:57]} 4. Nxd4 {[%clk 0:02:07]}  Nf6 {[%clk 0:02:57]} 5. Nc3 {[%clk 0:02:07]}  d6 {[%clk 0:02:58]} 6. Be2 {[%clk 0:02:04]}  e5 {[%clk 0:02:58]} 7. Nb3 {[%clk 0:02:04]}  Be7 {[%clk 0:02:57]} 8. O-O {[%clk 0:02:03]}  O-O {[%clk 0:02:57]} 9. f4 {[%clk 0:02:04]}  a5 {[%clk 0:02:53]} 10. a4 {[%clk 0:01:56]}  Be6 {[%clk 0:02:52]} 11. f5 {[%clk 0:01:52]}  Bd7 {[%clk 0:02:48]} 12. Bf3 {[%clk 0:01:46]}  Nb4 {[%clk 0:02:48]} 13. Be3 {[%clk 0:01:38]}  Bc6 {[%clk 0:02:48]} 14. Nd2 {[%clk 0:01:24]}  d5 {[%clk 0:02:46]} 15. exd5 {[%clk 0:01:23]}  Nbxd5 {[%clk 0:02:42]} 16. Nxd5 {[%clk 0:01:21]}  Nxd5 {[%clk 0:02:41]} 17. Bf2 {[%clk 0:01:21]}  Bg5 {[%clk 0:02:36]} 18. Nc4 {[%clk 0:01:17]}  Re8 {[%clk 0:02:23]} 19. Re1 {[%clk 0:00:58]}  f6 {[%clk 0:01:44]} 20. Be4 {[%clk 0:00:49]}  Kh8 {[%clk 0:01:39]} 21. c3 {[%clk 0:00:46]}  Qd7 {[%clk 0:01:34]} 22. Qf3 {[%clk 0:00:41]}  Rad8 {[%clk 0:01:31]} 23. Rad1 {[%clk 0:00:39]}  Qf7 {[%clk 0:01:29]} 24. Nxa5 {[%clk 0:00:37]}  Qc7 {[%clk 0:01:06]} 25. Nxc6 {[%clk 0:00:33]}  bxc6 {[%clk 0:01:06]} 26. h4 {[%clk 0:00:30]}  Bh6 {[%clk 0:01:06]} 27. g3 {[%clk 0:00:30]}  Qb7 {[%clk 0:01:03]} 28. b4 {[%clk 0:00:29]}  Rd7 {[%clk 0:00:57]} 29. b5 {[%clk 0:00:27]}  Red8 {[%clk 0:00:56]} 30. c4 {[%clk 0:00:25]}  cxb5 {[%clk 0:00:20]} 31. Bxd5 {[%clk 0:00:23]}  e4 {[%clk 0:00:17]} 32. Bxb7 {[%clk 0:00:21]}  exf3 {[%clk 0:00:17]} 33. Rxd7 {[%clk 0:00:21]}  Rg8 {[%clk 0:00:13]} 34. axb5 {[%clk 0:00:20]}  Bd2 {[%clk 0:00:10]} 35. Ree7 {[%clk 0:00:21]}  Bb4 {[%clk 0:00:09]} 36. Rf7 {[%clk 0:00:20]}  Bf8 {[%clk 0:00:08]} 37. Bd5 {[%clk 0:00:20]}  h5 {[%clk 0:00:09]} 38. Rd8 {[%clk 0:00:19]}  Bc5 {[%clk 0:00:08]} 39. Rfd7 {[%clk 0:00:19]}  Bxf2+ {[%clk 0:00:07]} 40. Kxf2 {[%clk 0:00:20]}  g5 {[%clk 0:00:07]} 41. fxg6 {[%clk 0:00:19]}  Rxd8 {[%clk 0:00:04]} 42. Rh7# {[%clk 0:00:19]} 1-0


[Site "https://www.chess.com"]

[Event "Titled Tuesday Blitz May 10 Late 2022"]
[White "Terry, Renato"]
[Black "Vajda, Levente"]
[WhiteFideId "3803457"]
[BlackFideId "1203975"]
[WhiteElo "2577"]
[BlackElo "2573"]
[Result "1-0"]
[Round "02"]
[TimeControl "180+1"]
[Date "2022.05.10"]
[WhiteClock "0:00:04"]
[BlackClock "0:00:01"]

1. e4 {[%clk 0:02:59]}  e5 {[%clk 0:02:59]} 2. Nf3 {[%clk 0:02:59]}  Nc6 {[%clk 0:02:59]} 3. c3 {[%clk 0:03:00]}  d5 {[%clk 0:02:56]} 4. Qa4 {[%clk 0:03:00]}  dxe4 {[%clk 0:02:39]} 5. Nxe5 {[%clk 0:03:00]}  Qd5 {[%clk 0:02:39]} 6. Nxc6 {[%clk 0:03:00]}  bxc6 {[%clk 0:02:38]} 7. Bc4 {[%clk 0:03:00]}  Qd6 {[%clk 0:02:35]} 8. d3 {[%clk 0:02:58]}  exd3 {[%clk 0:02:27]} 9. O-O {[%clk 0:02:58]}  Bd7 {[%clk 0:02:20]} 10. Rd1 {[%clk 0:02:47]}  Nf6 {[%clk 0:02:15]} 11. Bxd3 {[%clk 0:02:42]}  Qc5 {[%clk 0:01:38]} 12. Nd2 {[%clk 0:02:12]}  Bd6 {[%clk 0:01:30]} 13. Re1+ {[%clk 0:02:09]}  Kf8 {[%clk 0:01:30]} 14. Nf3 {[%clk 0:02:03]}  h6 {[%clk 0:01:21]} 15. Qh4 {[%clk 0:01:50]}  Bg4 {[%clk 0:01:07]} 16. h3 {[%clk 0:01:20]}  Bxf3 {[%clk 0:01:05]} 17. gxf3 {[%clk 0:01:21]}  g5 {[%clk 0:01:05]} 18. Qc4 {[%clk 0:01:08]}  Qxc4 {[%clk 0:01:02]} 19. Bxc4 {[%clk 0:01:09]}  Kg7 {[%clk 0:01:03]} 20. Be3 {[%clk 0:01:09]}  c5 {[%clk 0:00:51]} 21. Rad1 {[%clk 0:01:07]}  Rhe8 {[%clk 0:00:47]} 22. b3 {[%clk 0:01:06]}  Nh5 {[%clk 0:00:39]} 23. Bf1 {[%clk 0:01:00]}  Nf4 {[%clk 0:00:38]} 24. Rd2 {[%clk 0:00:59]}  a5 {[%clk 0:00:36]} 25. Red1 {[%clk 0:00:59]}  Re6 {[%clk 0:00:29]} 26. a4 {[%clk 0:00:57]}  Rb8 {[%clk 0:00:29]} 27. Rc2 {[%clk 0:00:58]}  Re7 {[%clk 0:00:24]} 28. Rb1 {[%clk 0:00:54]}  Nd5 {[%clk 0:00:19]} 29. Bd2 {[%clk 0:00:54]}  Bf4 {[%clk 0:00:18]} 30. Bc4 {[%clk 0:00:54]}  Bxd2 {[%clk 0:00:17]} 31. Bxd5 {[%clk 0:00:54]}  Bf4 {[%clk 0:00:18]} 32. Be4 {[%clk 0:00:52]}  Rd8 {[%clk 0:00:17]} 33. b4 {[%clk 0:00:51]}  cxb4 {[%clk 0:00:17]} 34. cxb4 {[%clk 0:00:51]}  axb4 {[%clk 0:00:18]} 35. Rxb4 {[%clk 0:00:52]}  Rd1+ {[%clk 0:00:16]} 36. Kg2 {[%clk 0:00:52]}  Red7 {[%clk 0:00:15]} 37. Re2 {[%clk 0:00:35]}  Ra1 {[%clk 0:00:15]} 38. Rb1 {[%clk 0:00:35]}  Ra3 {[%clk 0:00:12]} 39. Rc2 {[%clk 0:00:24]}  Rd4 {[%clk 0:00:11]} 40. Bc6 {[%clk 0:00:25]}  Bd6 {[%clk 0:00:09]} 41. Re1 {[%clk 0:00:24]}  Rb4 {[%clk 0:00:06]} 42. Rec1 {[%clk 0:00:24]}  Rd4 {[%clk 0:00:06]} 43. Re1 {[%clk 0:00:25]}  Rb4 {[%clk 0:00:06]} 44. Bb5 {[%clk 0:00:18]}  Rd4 {[%clk 0:00:05]} 45. Rec1 {[%clk 0:00:17]}  Rb4 {[%clk 0:00:05]} 46. Rc3 {[%clk 0:00:17]}  Ra2 {[%clk 0:00:05]} 47. R3c2 {[%clk 0:00:17]}  Ra3 {[%clk 0:00:05]} 48. Re1 {[%clk 0:00:15]}  Rd4 {[%clk 0:00:05]} 49. Re3 {[%clk 0:00:14]}  Ra1 {[%clk 0:00:05]} 50. Rd3 {[%clk 0:00:15]}  Rb4 {[%clk 0:00:05]} 51. f4 {[%clk 0:00:06]}  Bxf4 {[%clk 0:00:04]} 52. Rdc3 {[%clk 0:00:05]}  Bd6 {[%clk 0:00:03]} 53. Rf3 {[%clk 0:00:03]}  Rbb1 {[%clk 0:00:01]} 54. Rfc3 {[%clk 0:00:04]}  Bf4 {[%clk 0:00:01]} 55. Kf3 {[%clk 0:00:05]}  Rh1 {[%clk 0:00:01]} 56. Ke4 {[%clk 0:00:04]}  Rhe1+ {[%clk 0:00:01]} 57. Kd5 {[%clk 0:00:04]} 1-0


[Site "https://www.chess.com"]

[Event "Titled Tuesday Blitz May 10 Late 2022"]
[White "Tisaj, Domen"]
[Black "Shimanov, Aleksandr"]
[WhiteFideId "14628708"]
[BlackFideId "4198603"]
[WhiteElo "2326"]
[BlackElo "2605"]
[Result "0-1"]
[Round "02"]
[TimeControl "180+1"]
[Date "2022.05.10"]
[WhiteClock "0:02:02"]
[BlackClock "0:00:40"]

1. d4 {[%clk 0:03:00]}  Nf6 {[%clk 0:02:59]} 2. c4 {[%clk 0:03:01]}  g6 {[%clk 0:02:59]} 3. Nc3 {[%clk 0:03:02]}  Bg7 {[%clk 0:03:00]} 4. e4 {[%clk 0:03:02]}  O-O {[%clk 0:03:01]} 5. f3 {[%clk 0:03:03]}  d6 {[%clk 0:03:00]} 6. Be3 {[%clk 0:03:03]}  c5 {[%clk 0:02:57]} 7. Nge2 {[%clk 0:03:03]}  Nc6 {[%clk 0:02:53]} 8. d5 {[%clk 0:03:02]}  Ne5 {[%clk 0:02:53]} 9. Ng3 {[%clk 0:03:03]}  h5 {[%clk 0:02:47]} 10. Be2 {[%clk 0:03:03]}  h4 {[%clk 0:02:41]} 11. Nf1 {[%clk 0:03:03]}  e6 {[%clk 0:02:29]} 12. Nd2 {[%clk 0:03:03]}  exd5 {[%clk 0:02:24]} 13. cxd5 {[%clk 0:03:04]}  a6 {[%clk 0:02:22]} 14. a4 {[%clk 0:03:03]}  Rb8 {[%clk 0:02:22]} 15. O-O {[%clk 0:03:02]}  h3 {[%clk 0:02:18]} 16. g3 {[%clk 0:02:57]}  Bd7 {[%clk 0:02:04]} 17. Bg5 {[%clk 0:02:47]}  Qb6 {[%clk 0:02:00]} 18. f4 {[%clk 0:02:23]}  Neg4 {[%clk 0:00:55]} 19. Nc4 {[%clk 0:02:21]}  Qc7 {[%clk 0:00:55]} 20. e5 {[%clk 0:02:14]}  dxe5 {[%clk 0:00:54]} 21. fxe5 {[%clk 0:02:13]}  Nh7 {[%clk 0:00:49]} 22. d6 {[%clk 0:02:03]}  Qc8 {[%clk 0:00:41]} 23. Nb6 {[%clk 0:02:01]}  Qc6 {[%clk 0:00:40]} 24. Nxd7 {[%clk 0:02:02]}  Qg2# {[%clk 0:00:40]} 0-1


[Site "https://www.chess.com"]

[Event "Titled Tuesday Blitz May 10 Late 2022"]
[White "Villiers, Thomas"]
[Black "Ohanyan, Emin"]
[WhiteFideId "427209"]
[BlackFideId "13312022"]
[WhiteElo "2164"]
[BlackElo "1927"]
[Result "1-0"]
[Round "02"]
[TimeControl "180+1"]
[Date "2022.05.11"]
[WhiteClock "0:00:47"]
[BlackClock "0:00:03"]

1. e4 {[%clk 0:03:00]}  e5 {[%clk 0:02:58]} 2. Nf3 {[%clk 0:02:57]}  Nc6 {[%clk 0:02:58]} 3. Bc4 {[%clk 0:02:57]}  Nf6 {[%clk 0:02:58]} 4. O-O {[%clk 0:02:50]}  Nxe4 {[%clk 0:02:57]} 5. Re1 {[%clk 0:02:49]}  d5 {[%clk 0:02:57]} 6. Bb5 {[%clk 0:02:46]}  Bc5 {[%clk 0:02:57]} 7. d4 {[%clk 0:02:43]}  exd4 {[%clk 0:02:52]} 8. Nxd4 {[%clk 0:02:35]}  O-O {[%clk 0:02:52]} 9. Bxc6 {[%clk 0:02:35]}  bxc6 {[%clk 0:02:50]} 10. Be3 {[%clk 0:02:33]}  Qf6 {[%clk 0:02:40]} 11. c3 {[%clk 0:02:28]}  Bb6 {[%clk 0:02:37]} 12. Nd2 {[%clk 0:02:24]}  Nxd2 {[%clk 0:02:34]} 13. Qxd2 {[%clk 0:02:23]}  c5 {[%clk 0:02:31]} 14. Nf3 {[%clk 0:02:18]}  c6 {[%clk 0:02:31]} 15. Bg5 {[%clk 0:02:14]}  Qg6 {[%clk 0:02:30]} 16. Ne5 {[%clk 0:02:13]}  Qd6 {[%clk 0:02:15]} 17. Nc4 {[%clk 0:02:12]}  Qg6 {[%clk 0:02:10]} 18. Nxb6 {[%clk 0:02:07]}  axb6 {[%clk 0:02:11]} 19. Be7 {[%clk 0:02:07]}  Re8 {[%clk 0:02:06]} 20. Bh4 {[%clk 0:02:00]}  Be6 {[%clk 0:01:57]} 21. Bg3 {[%clk 0:01:57]}  Ra4 {[%clk 0:01:47]} 22. Re5 {[%clk 0:01:50]}  Rxa2 {[%clk 0:01:42]} 23. Rxa2 {[%clk 0:01:48]}  Qb1+ {[%clk 0:01:41]} 24. Qe1 {[%clk 0:01:48]}  Qxa2 {[%clk 0:01:41]} 25. f4 {[%clk 0:01:48]}  Qa8 {[%clk 0:01:07]} 26. f5 {[%clk 0:01:48]}  Bd7 {[%clk 0:01:07]} 27. Rxe8+ {[%clk 0:01:47]}  Bxe8 {[%clk 0:01:04]} 28. Bd6 {[%clk 0:01:46]}  Bd7 {[%clk 0:00:57]} 29. f6 {[%clk 0:01:44]}  Be6 {[%clk 0:00:49]} 30. fxg7 {[%clk 0:01:40]}  Qa2 {[%clk 0:00:48]} 31. h3 {[%clk 0:01:33]}  Qxb2 {[%clk 0:00:46]} 32. Qh4 {[%clk 0:01:29]}  Qc1+ {[%clk 0:00:01]} 33. Kh2 {[%clk 0:01:28]}  h6 {[%clk 0:00:01]} 34. Be5 {[%clk 0:01:15]}  Qg5 {[%clk 0:00:01]} 35. Qe1 {[%clk 0:01:00]}  Qg6 {[%clk 0:00:01]} 36. Qa1 {[%clk 0:00:53]}  Kh7 {[%clk 0:00:01]} 37. Qa8 {[%clk 0:00:51]}  Qf5 {[%clk 0:00:01]} 38. Qh8+ {[%clk 0:00:51]}  Kg6 {[%clk 0:00:02]} 39. g8=Q+ {[%clk 0:00:51]}  Kh5 {[%clk 0:00:02]} 40. g4+ {[%clk 0:00:48]}  Kh4 {[%clk 0:00:03]} 41. Bg3# {[%clk 0:00:47]} 1-0


[Site "https://www.chess.com"]